fUSD/lending_fUSD_20240214
["ID","MTS","AMOUNT","RATE_DAILY","PERIOD"]
[314008134,1707923473715,-1428.62,0.0003726,2]
[314008135,1707923473725,-500.0,0.0003726,2]
[314008136,1707923473735,-3754.14,0.0003726,7]
[314008137,1707923473745,-551.94,0.0003726,2]
[314008138,1707923473755,-2643.73,0.0003726,2]
[314008139,1707923473765,-1200.28,0.0003726,2]
[314008140,1707923473775,-1293.93,0.0003726,2]
[314008141,1707923473784,-500.0,0.0003726,2]
[314008142,1707923473794,-4255.94,0.0003726,2]
[314008143,1707923473803,-500.0,0.0003726,2]
[314008144,1707923473813,-500.0,0.0003726,2]
[314008145,1707923473823,-1073.43,0.0003726,2]
[314008146,1707923473833,-1154.7,0.0003726,2]
[314008147,1707923473843,-500.0,0.0003726,2]
[314008148,1707923473853,-749.27,0.0003726,2]
[314008149,1707923473864,-1681.08,0.0003726,2]
[314008150,1707923473874,-696.07,0.0003726,2]
[314008151,1707923473886,-1992.67,0.0003726,2]
[314008152,1707923473896,-1960.66,0.0003726,2]
[314008153,1707923473906,-4598.11,0.0003726,2]
[314008154,1707923473916,-2148.61,0.0003726,2]
[314008155,1707923473925,-500.0,0.0003726,2]
[314008156,1707923473935,-776.5,0.0003726,2]
[314008157,1707923473944,-876.47,0.0003726,2]
[314008158,1707923473957,-500.0,0.0003726,2]
[314008159,1707923473967,-907.63,0.0003726,2]
[314008160,1707923473977,-1863.83,0.0003726,2]
[314008161,1707923473986,-759.83,0.0003726,2]
[314008162,1707923473998,-22229.37,0.0003726,2]
[314008163,1707923474008,-2233.48,0.0003726,2]
[314008164,1707923474018,-28574.85781921,0.0003726,2]
[314008165,1707923474027,-2807.7,0.0003726,2]
[314008166,1707923474037,-1407.78,0.0003726,2]
[314008167,1707923474047,-500.0,0.0003726,2]
[314008168,1707923474056,-4409.87,0.0003726,2]
[314008169,1707923474067,-749.48,0.0003726,2]
[314008170,1707923474077,-770.43,0.0003726,2]
[314008171,1707923474087,-500.0,0.0003726,2]
[314008172,1707923474097,-500.0,0.0003726,2]
[314008173,1707923474107,-940.66,0.0003726,2]
[314008174,1707923474116,-519.76647883,0.0003726,2]
[314008175,1707923474130,-778.24,0.0003726,2]
[314008176,1707923474140,-1582.96,0.0003726,2]
[314008177,1707923474150,-500.0,0.0003726,2]
[314008178,1707923474160,-819.98,0.0003726,2]
[314008179,1707923474170,-501.61,0.0003726,2]
[314008180,1707923474181,-1689.02,0.0003726,2]
[314008181,1707923474191,-152.09,0.00037265,2]
[314008182,1707923474201,-500.0,0.00037282,7]
[314008183,1707923474211,-4124.4,0.000373,7]
[314008184,1707923474221,-150.0,0.00037313,2]
[314008185,1707923474230,-1081.28476782,0.0003732,5]
[314008186,1707923474240,-204.0,0.00037327,9]
[314008187,1707923474250,-2758.43,0.000374,7]
[314008188,1707923474259,-150.0,0.00037444,2]
[314008189,1707923474270,-200.0,0.000375,30]
[314008190,1707923474279,-1000.0,0.000375,2]
[314008191,1707923474289,-150.0,0.00037519,2]
[314008192,1707923474298,-150.0,0.00037519,2]
[314008193,1707923474308,-78000.0,0.0003752,5]
[314008194,1707923474318,-6879.71003742,0.00037521,2]
[314008195,1707923474328,-2641.0,0.00037526,20]
[314008196,1707923474338,-544.0,0.00037526,20]
[314008197,1707923474348,-150.0,0.00037533,30]
[314008198,1707923474358,-500.0,0.00037533,2]
[314008199,1707923474368,-500.0,0.00037533,2]
[314008200,1707923474382,-500.0,0.00037533,2]
[314008201,1707923474391,-500.0,0.00037534,2]
[314008202,1707923474400,-500.0,0.00037534,2]
[314008203,1707923474410,-250.0,0.00037534,2]
[314008204,1707923474419,-500.0,0.00037534,2]
[314008205,1707923474429,-566.48990547,0.00037534,2]
[314008206,1707923474439,-500.0,0.00037534,2]
[314008207,1707923474448,-500.0,0.00037534,2]
[314008208,1707923474458,-500.0,0.00037534,2]
[314008209,1707923474467,-500.0,0.00037534,2]
[314008210,1707923474476,-500.0,0.00037534,2]
[314008211,1707923474486,-500.0,0.00037534,2]
[314008212,1707923474495,-500.0,0.00037534,2]
[314008213,1707923474504,-500.0,0.00037534,2]
[314008214,1707923474514,-164.11633417,0.00037534,2]
[314008215,1707923474524,-500.0,0.00037534,2]
[314008216,1707923474533,-500.0,0.00037534,2]
[314008217,1707923474543,-636.47,0.00037534,2]
[314008218,1707923474553,-500.0,0.00037534,2]
[314008219,1707923474564,-500.0,0.00037534,2]
[314008220,1707923474573,-500.0,0.00037534,2]
[314008221,1707923474582,-500.0,0.00037534,2]
[314008222,1707923474591,-500.0,0.00037534,2]
[314008223,1707923474601,-500.0,0.00037534,2]
[314008224,1707923474610,-500.0,0.00037534,2]
[314008225,1707923474619,-500.0,0.00037534,2]
[314008226,1707923474633,-500.0,0.00037534,2]
[314008227,1707923474642,-500.0,0.00037534,2]
[314008228,1707923474652,-258.23413755,0.00037534,2]
[314008229,1707923474661,-1000.0,0.00037534,2]
[314008230,1707923474670,-500.0,0.00037534,2]
[314008231,1707923474680,-500.0,0.00037534,2]
[314008232,1707923474689,-500.0,0.00037534,2]
[314008233,1707923474698,-500.0,0.00037534,2]
[314008234,1707923474708,-500.0,0.00037534,2]
[314008235,1707923474717,-500.0,0.00037534,2]
[314008236,1707923474726,-500.0,0.00037534,2]
[314008237,1707923474736,-500.0,0.00037534,2]
[314008238,1707923474745,-500.0,0.00037534,2]
[314008239,1707923474754,-310.49098426,0.00037534,2]
[314008240,1707923474763,-536.83,0.00037534,2]
[314008241,1707923474772,-500.0,0.00037534,2]
[314008242,1707923474782,-500.0,0.00037534,2]
[314008243,1707923474791,-500.0,0.00037534,2]
[314008244,1707923474801,-500.0,0.00037534,2]
[314008245,1707923474811,-500.0,0.00037534,2]
[314008246,1707923474820,-511.55,0.00037534,2]
[314008247,1707923474830,-500.0,0.00037534,2]
[314008248,1707923474840,-500.0,0.00037534,2]
[314008249,1707923474849,-564.0,0.00037534,2]
[314008250,1707923474859,-500.0,0.00037534,2]
[314008251,1707923474869,-500.0,0.00037534,2]
[314008252,1707923474882,-500.0,0.00037534,2]
[314008253,1707923474891,-500.0,0.00037534,2]
[314008254,1707923474901,-1240.83,0.00037534,2]
[314008255,1707923474911,-345.4,0.00037534,2]
[314008256,1707923474921,-500.0,0.00037534,2]
[314008257,1707923474930,-1171.11,0.00037534,2]
[314008258,1707923474940,-564.08,0.00037534,2]
[314008259,1707923474951,-1281.17,0.00037534,2]
[314008260,1707923474964,-1147.23,0.00037534,2]
[314008261,1707923474974,-500.0,0.00037534,2]
[314008262,1707923474984,-568.35,0.00037534,2]
[314008263,1707923474994,-500.0,0.00037534,2]
[314008264,1707923475005,-1433.14,0.00037534,2]
[314008265,1707923475014,-500.0,0.00037534,2]
[314008266,1707923475024,-500.0,0.00037534,2]
[314008267,1707923475034,-500.0,0.00037534,2]
[314008268,1707923475043,-500.0,0.00037534,2]
[314008269,1707923475053,-311.86888116,0.00037534,2]
[314008270,1707923475062,-530.02,0.00037534,2]
[314008271,1707923475073,-500.0,0.00037534,2]
[314008272,1707923475083,-153.16375691,0.00037534,2]
[314008273,1707923475093,-528.29,0.00037534,2]
[314008274,1707923475102,-1489.83,0.00037534,2]
[314008275,1707923475112,-500.0,0.00037534,2]
[314008276,1707923475121,-1024.97,0.00037534,2]
[314008277,1707923475133,-500.0,0.00037534,2]
[314008278,1707923475143,-500.0,0.00037534,2]
[314008279,1707923475152,-500.0,0.00037534,2]
[314008280,1707923475161,-500.0,0.00037534,2]
[314008281,1707923475170,-500.0,0.00037534,2]
[314008282,1707923475180,-569.56,0.00037534,2]
[314008283,1707923475189,-500.0,0.00037534,2]
[314008284,1707923475199,-500.0,0.00037534,2]
[314008285,1707923475208,-1152.13,0.00037534,2]
[314008286,1707923475217,-785.09,0.00037534,2]
[314008287,1707923475227,-500.0,0.00037534,2]
[314008288,1707923475236,-1376.22,0.00037534,2]
[314008289,1707923475245,-500.0,0.00037534,2]
[314008290,1707923475255,-452.74201313,0.00037534,2]
[314008291,1707923475264,-770.95,0.00037534,2]
[314008292,1707923475273,-500.0,0.00037534,2]
[314008293,1707923475283,-1599.92,0.00037534,2]
[314008294,1707923475292,-1153.23,0.00037534,2]
[314008295,1707923475303,-500.0,0.00037534,2]
[314008296,1707923475312,-1045.09,0.00037534,2]
[314008297,1707923475322,-774.56,0.00037534,2]
[314008298,1707923475333,-1031.35,0.00037534,2]
[314008299,1707923475342,-548.76,0.00037534,2]
[314008300,1707923475352,-500.0,0.00037534,2]
[314008301,1707923475361,-500.0,0.00037534,2]
[314008302,1707923475371,-661.87,0.00037534,2]
[314008303,1707923475383,-584.37,0.00037534,2]
[314008304,1707923475393,-500.0,0.00037534,2]
[314008305,1707923475403,-500.0,0.00037534,2]
[314008306,1707923475412,-520.1,0.00037534,2]
[314008307,1707923475421,-1604.0,0.00037534,2]
[314008308,1707923475430,-943.16,0.00037534,2]
[314008309,1707923475439,-500.0,0.00037534,2]
[314008310,1707923475449,-500.0,0.00037534,2]
[314008311,1707923475458,-500.0,0.00037534,2]
[314008312,1707923475468,-704.7,0.00037534,2]
[314008313,1707923475477,-644.22,0.00037534,2]
[314008314,1707923475486,-500.0,0.00037534,2]
[314008315,1707923475496,-1264.92,0.00037534,2]
[314008316,1707923475506,-1136.26,0.00037534,2]
[314008317,1707923475516,-812.61,0.00037534,2]
[314008318,1707923475525,-570.14,0.00037534,2]
[314008319,1707923475535,-500.0,0.00037534,2]
[314008320,1707923475545,-500.0,0.00037534,2]
[314008321,1707923475554,-553.03,0.00037534,2]
[314008322,1707923475563,-519.06,0.00037534,2]
[314008323,1707923475573,-217.13669009,0.00037534,2]
[314008324,1707923475582,-500.0,0.00037534,2]
[314008325,1707923475591,-1130.05,0.00037534,2]
[314008326,1707923475601,-733.41,0.00037534,2]
[314008327,1707923475610,-500.0,0.00037534,2]
[314008328,1707923475619,-674.48,0.00037534,2]
[314008329,1707923475632,-500.0,0.00037534,2]
[314008330,1707923475642,-500.0,0.00037534,2]
[314008331,1707923475651,-599.48,0.00037534,2]
[314008332,1707923475660,-699.45,0.00037534,2]
[314008333,1707923475671,-500.0,0.00037534,2]
[314008334,1707923475682,-647.83,0.00037534,2]
[314008335,1707923475691,-808.31,0.00037534,2]
[314008336,1707923475701,-500.0,0.00037534,2]
[314008337,1707923475710,-500.0,0.00037534,2]
[314008338,1707923475720,-1377.65,0.00037534,2]
[314008339,1707923475729,-734.76,0.00037534,2]
[314008340,1707923475739,-1574.35,0.00037534,2]
[314008341,1707923475749,-500.0,0.00037534,2]
[314008342,1707923475760,-1145.4,0.00037534,2]
[314008343,1707923475769,-1361.9,0.00037534,2]
[314008344,1707923475779,-500.0,0.00037534,2]
[314008345,1707923475789,-500.0,0.00037534,2]
[314008346,1707923475799,-500.0,0.00037534,2]
[314008347,1707923475809,-500.0,0.00037534,2]
[314008348,1707923475819,-500.0,0.00037534,2]
[314008349,1707923475829,-1000.98,0.00037534,2]
[314008350,1707923475839,-940.65,0.00037534,2]
[314008351,1707923475849,-819.39,0.00037534,2]
[314008352,1707923475859,-664.33,0.00037534,2]
[314008353,1707923475869,-500.0,0.00037534,2]
[314008354,1707923475882,-500.0,0.00037534,2]
[314008355,1707923475891,-500.0,0.00037534,2]
[314008356,1707923475900,-500.0,0.00037534,2]
[314008357,1707923475909,-500.0,0.00037534,2]
[314008358,1707923475919,-574.43,0.00037534,2]
[314008359,1707923475928,-582.92,0.00037534,2]
[314008360,1707923475938,-500.0,0.00037534,2]
[314008361,1707923475948,-709.41,0.00037534,2]
[314008362,1707923475958,-523.78,0.00037534,2]
[314008363,1707923475968,-584.12,0.00037534,2]
[314008364,1707923475977,-629.64,0.00037534,2]
[314008365,1707923475988,-500.0,0.00037534,2]
[314008366,1707923475997,-549.4,0.00037534,2]
[314008367,1707923476007,-500.0,0.00037534,2]
[314008368,1707923476017,-1007.67,0.00037534,2]
[314008369,1707923476027,-2090.09,0.00037534,2]
[314008370,1707923476037,-964.24,0.00037534,2]
[314008371,1707923476047,-500.0,0.00037534,2]
[314008372,1707923476057,-500.0,0.00037534,2]
[314008373,1707923476068,-633.52,0.00037534,2]
[314008374,1707923476077,-500.0,0.00037534,2]
[314008375,1707923476086,-500.0,0.00037534,2]
[314008376,1707923476095,-500.0,0.00037534,2]
[314008377,1707923476104,-500.0,0.00037534,2]
[314008378,1707923476113,-1464.25,0.00037534,2]
[314008379,1707923476123,-547.73,0.00037534,2]
[314008380,1707923476341,-760.6,0.00037534,2]
[314008381,1707923476352,-1470.37,0.00037534,2]
[314008382,1707923476362,-500.0,0.00037534,2]
[314008383,1707923476371,-608.25,0.00037534,2]
[314008384,1707923476384,-500.0,0.00037534,2]
[314008385,1707923476394,-1725.04,0.00037534,2]
[314008386,1707923476403,-554.39,0.00037534,2]
[314008387,1707923476412,-500.0,0.00037534,2]
[314008388,1707923476421,-1351.58,0.00037534,2]
[314008389,1707923476431,-500.0,0.00037534,2]
[314008390,1707923476442,-500.0,0.00037534,2]
[314008391,1707923476451,-638.35,0.00037534,2]
[314008392,1707923476460,-500.0,0.00037534,2]
[314008393,1707923476469,-500.0,0.00037534,2]
[314008394,1707923476478,-500.0,0.00037534,2]
[314008395,1707923476487,-500.0,0.00037534,2]
[314008396,1707923476496,-500.0,0.00037534,2]
[314008397,1707923476505,-855.82,0.00037534,2]
[314008398,1707923476515,-619.45,0.00037534,2]
[314008399,1707923476523,-974.92,0.00037534,2]
[314008400,1707923476532,-500.0,0.00037534,2]
[314008401,1707923476543,-500.0,0.00037534,2]
[314008402,1707923476554,-500.0,0.00037534,2]
[314008403,1707923476565,-1157.75,0.00037534,2]
[314008404,1707923476574,-896.42,0.00037534,2]
[314008405,1707923476583,-500.0,0.00037534,2]
[314008406,1707923476593,-500.0,0.00037534,2]
[314008407,1707923476603,-500.0,0.00037534,2]
[314008408,1707923476612,-500.0,0.00037534,2]
[314008409,1707923476621,-500.0,0.00037534,2]
[314008410,1707923476634,-500.0,0.00037534,2]
[314008411,1707923476644,-500.0,0.00037534,2]
[314008412,1707923476654,-544.41,0.00037534,2]
[314008413,1707923476663,-586.61,0.00037534,2]
[314008414,1707923476673,-863.99,0.00037534,2]
[314008415,1707923476683,-500.0,0.00037534,2]
[314008416,1707923476692,-969.91,0.00037534,2]
[314008417,1707923476701,-500.0,0.00037534,2]
[314008418,1707923476711,-500.0,0.00037534,2]
[314008419,1707923476719,-500.0,0.00037534,2]
[314008420,1707923476729,-500.0,0.00037534,2]
[314008421,1707923476738,-500.0,0.00037534,2]
[314008422,1707923476747,-597.96,0.00037534,2]
[314008423,1707923476757,-1237.52,0.00037534,2]
[314008424,1707923476767,-500.0,0.00037534,2]
[314008425,1707923476777,-500.0,0.00037534,2]
[314008426,1707923476786,-686.48,0.00037534,2]
[314008427,1707923476795,-500.0,0.00037534,2]
[314008428,1707923476805,-500.0,0.00037534,2]
[314008429,1707923476814,-500.0,0.00037534,2]
[314008430,1707923476823,-633.51,0.00037534,2]
[314008431,1707923476832,-500.0,0.00037534,2]
[314008432,1707923476841,-500.0,0.00037534,2]
[314008433,1707923476850,-1310.86,0.00037534,2]
[314008434,1707923476860,-500.0,0.00037534,2]
[314008435,1707923476869,-646.21,0.00037534,2]
[314008436,1707923476882,-500.0,0.00037534,2]
[314008437,1707923476892,-500.0,0.00037534,2]
[314008438,1707923476901,-643.81,0.00037534,2]
[314008439,1707923476911,-500.0,0.00037534,2]
[314008440,1707923476920,-500.0,0.00037534,2]
[314008441,1707923476930,-500.0,0.00037534,2]
[314008442,1707923476939,-632.83,0.00037534,2]
[314008443,1707923476948,-1166.74,0.00037534,2]
[314008444,1707923476958,-500.0,0.00037534,2]
[314008445,1707923476967,-500.0,0.00037534,2]
[314008446,1707923476976,-500.0,0.00037534,2]
[314008447,1707923476987,-778.72,0.00037534,2]
[314008448,1707923476997,-500.0,0.00037534,2]
[314008449,1707923477007,-537.19,0.00037534,2]
[314008450,1707923477016,-522.92,0.00037534,2]
[314008451,1707923477026,-500.0,0.00037534,2]
[314008452,1707923477035,-500.0,0.00037534,2]
[314008453,1707923477046,-500.0,0.00037534,2]
[314008454,1707923477057,-839.23,0.00037534,2]
[314008455,1707923477069,-500.0,0.00037534,2]
[314008456,1707923477078,-540.0,0.00037534,2]
[314008457,1707923477087,-860.82,0.00037534,2]
[314008458,1707923477097,-500.0,0.00037534,2]
[314008459,1707923477106,-710.26,0.00037534,2]
[314008460,1707923477116,-500.0,0.00037534,2]
[314008461,1707923477125,-500.0,0.00037534,2]
[314008462,1707923477137,-500.0,0.00037534,2]
[314008463,1707923477146,-500.0,0.00037534,2]
[314008464,1707923477155,-500.0,0.00037534,2]
[314008465,1707923477164,-500.0,0.00037534,2]
[314008466,1707923477174,-526.96594714,0.00037534,2]
[314008467,1707923477183,-594.3,0.00037534,2]
[314008468,1707923477192,-500.0,0.00037534,2]
[314008469,1707923477201,-1376.8,0.00037534,2]
[314008470,1707923477210,-500.0,0.00037534,2]
[314008471,1707923477219,-563.0,0.00037534,2]
[314008472,1707923477229,-689.41,0.00037534,2]
[314008473,1707923477238,-1735.17,0.00037534,2]
[314008474,1707923477247,-1292.66,0.00037534,2]
[314008475,1707923477257,-2576.99,0.00037534,2]
[314008476,1707923477267,-500.0,0.00037534,2]
[314008477,1707923477277,-500.0,0.00037534,2]
[314008478,1707923477287,-1880.82,0.00037534,2]
[314008479,1707923477296,-500.0,0.00037534,2]
[314008480,1707923477306,-500.0,0.00037534,2]
[314008481,1707923477315,-551.14,0.00037534,2]
[314008482,1707923477325,-500.0,0.00037534,2]
[314008483,1707923477334,-1420.44,0.00037534,2]
[314008484,1707923477344,-713.29,0.00037534,2]
[314008485,1707923477353,-1306.77,0.00037534,2]
[314008486,1707923477362,-865.48,0.00037534,2]
[314008487,1707923477371,-500.0,0.00037534,2]
[314008488,1707923477383,-500.0,0.00037534,2]
[314008489,1707923477392,-500.0,0.00037534,2]
[314008490,1707923477401,-798.43,0.00037534,2]
[314008491,1707923477411,-500.0,0.00037534,2]
[314008492,1707923477420,-1762.73,0.00037534,2]
[314008493,1707923477431,-792.44,0.00037534,2]
[314008494,1707923477441,-500.0,0.00037534,2]
[314008495,1707923477451,-566.85,0.00037534,2]
[314008496,1707923477460,-500.0,0.00037534,2]
[314008497,1707923477470,-500.0,0.00037534,2]
[314008498,1707923477479,-616.16,0.00037534,2]
[314008499,1707923477488,-500.0,0.00037534,2]
[314008500,1707923477497,-10000.0,0.00037534,2]
[314008501,1707923477506,-500.0,0.00037534,2]
[314008502,1707923477515,-500.0,0.00037534,2]
[314008503,1707923477524,-721.07,0.00037534,2]
[314008504,1707923477533,-500.0,0.00037534,2]
[314008505,1707923477542,-500.0,0.00037534,2]
[314008506,1707923477551,-500.0,0.00037534,2]
[314008507,1707923477560,-501.48,0.00037534,2]
[314008508,1707923477570,-1882.77,0.00037534,2]
[314008509,1707923477579,-581.76924867,0.00037534,2]
[314008510,1707923477588,-500.0,0.00037534,2]
[314008511,1707923477597,-500.0,0.00037534,2]
[314008512,1707923477606,-804.17,0.00037534,2]
[314008513,1707923477615,-1538.55,0.00037534,2]
[314008514,1707923477624,-500.0,0.00037534,2]
[314008515,1707923477637,-500.0,0.00037534,2]
[314008516,1707923477646,-500.0,0.00037534,2]
[314008517,1707923477655,-747.44,0.00037534,2]
[314008518,1707923477663,-500.0,0.00037534,2]
[314008519,1707923477672,-1390.73,0.00037534,2]
[314008520,1707923477685,-1109.74,0.00037534,2]
[314008521,1707923477694,-500.0,0.00037534,2]
[314008522,1707923477703,-500.0,0.00037534,2]
[314008523,1707923477713,-500.0,0.00037534,2]
[314008524,1707923477722,-500.0,0.00037534,2]
[314008525,1707923477731,-632.23,0.00037534,2]
[314008526,1707923477740,-500.0,0.00037534,2]
[314008527,1707923477749,-500.0,0.00037534,2]
[314008528,1707923477759,-886.7,0.00037534,2]
[314008529,1707923477769,-500.0,0.00037534,2]
[314008530,1707923477778,-500.0,0.00037534,2]
[314008531,1707923477787,-219.30231186,0.00037534,2]
[314008532,1707923477796,-500.0,0.00037534,2]
[314008533,1707923477806,-500.0,0.00037534,2]
[314008534,1707923477815,-605.87976112,0.00037534,2]
[314008535,1707923477825,-500.0,0.00037534,2]
[314008536,1707923477834,-500.0,0.00037534,2]
[314008537,1707923477844,-582.6,0.00037534,2]
[314008538,1707923477853,-500.0,0.00037534,2]
[314008539,1707923477863,-500.0,0.00037534,2]
[314008540,1707923477873,-500.0,0.00037534,2]
[314008541,1707923477886,-500.0,0.00037534,2]
[314008542,1707923477895,-631.42,0.00037534,2]
[314008543,1707923477905,-500.0,0.00037534,2]
[314008544,1707923477915,-278.11617986,0.00037534,2]
[314008545,1707923477924,-500.0,0.00037534,2]
[314008546,1707923477933,-1281.5,0.00037534,2]
[314008547,1707923477943,-500.0,0.00037534,2]
[314008548,1707923477954,-500.0,0.00037534,2]
[314008549,1707923477965,-500.0,0.00037534,2]
[314008550,1707923477974,-500.0,0.00037534,2]
[314008551,1707923477984,-500.0,0.00037534,2]
[314008552,1707923477995,-500.0,0.00037534,2]
[314008553,1707923478004,-1512.4,0.00037534,2]
[314008554,1707923478014,-669.64,0.00037534,2]
[314008555,1707923478023,-270.54,0.00037534,2]
[314008557,1707923478033,-2645.87,0.00037534,2]
[314008558,1707923478043,-500.0,0.00037534,2]
[314008559,1707923478052,-500.0,0.00037534,2]
[314008560,1707923478063,-500.0,0.00037534,2]
[314008561,1707923478072,-500.0,0.00037534,2]
[314008562,1707923478082,-649.97,0.00037534,2]
[314008563,1707923478091,-9592.87,0.00037534,2]
[314008564,1707923478101,-6589.39,0.00037534,2]
[314008565,1707923478110,-537.36,0.00037534,2]
[314008566,1707923478119,-500.0,0.00037534,2]
[314008567,1707923478131,-1074.08,0.00037534,2]
[314008568,1707923478141,-500.0,0.00037534,2]
[314008569,1707923478150,-712.86,0.00037534,2]
[314008570,1707923478160,-10349.22,0.00037534,2]
[314008571,1707923478170,-500.0,0.00037534,2]
[314008572,1707923478180,-2138.7,0.00037534,2]
[314008573,1707923478190,-2522.18,0.00037534,2]
[314008574,1707923478199,-1253.86,0.00037534,2]
[314008575,1707923478209,-500.0,0.00037534,2]
[314008576,1707923478218,-500.0,0.00037534,2]
[314008577,1707923478231,-500.0,0.00037534,2]
[314008578,1707923478241,-5792.28,0.00037534,2]
[314008579,1707923478251,-617.22,0.00037534,2]
[314008580,1707923478260,-775.14,0.00037534,2]
[314008581,1707923478270,-5438.42,0.00037534,2]
[314008582,1707923478280,-1042.95,0.00037534,2]
[314008583,1707923478289,-500.0,0.00037534,2]
[314008584,1707923478299,-1101.1,0.00037534,2]
[314008585,1707923478309,-1305.25,0.00037534,2]
[314008586,1707923478318,-1375.63,0.00037534,2]
[314008587,1707923478328,-500.0,0.00037534,2]
[314008588,1707923478338,-1942.7,0.00037534,2]
[314008589,1707923478347,-3610.33,0.00037534,2]
[314008590,1707923478356,-1710.63,0.00037534,2]
[314008591,1707923478366,-656.71,0.00037534,2]
[314008592,1707923478375,-500.0,0.00037534,2]
[314008593,1707923478388,-508.16,0.00037534,2]
[314008594,1707923478398,-500.0,0.00037534,2]
[314008595,1707923478407,-13119.1,0.00037534,2]
[314008596,1707923478417,-500.0,0.00037534,2]
[314008597,1707923478427,-500.0,0.00037534,2]
[314008598,1707923478436,-2795.61,0.00037534,2]
[314008599,1707923478446,-4841.93,0.00037534,2]
[314008600,1707923478455,-789.06,0.00037534,2]
[314008601,1707923478466,-1122.77,0.00037534,2]
[314008602,1707923478475,-3238.15,0.00037534,2]
[314008603,1707923478484,-1486.36,0.00037534,2]
[314008604,1707923478494,-500.0,0.00037534,2]
[314008605,1707923478503,-805.46,0.00037534,2]
[314008606,1707923478512,-500.0,0.00037534,2]
[314008607,1707923478522,-5897.47,0.00037534,2]
[314008608,1707923478531,-500.0,0.00037534,2]
[314008609,1707923478540,-664.49,0.00037534,2]
[314008610,1707923478549,-1313.77,0.00037534,2]
[314008611,1707923478558,-500.0,0.00037534,2]
[314008612,1707923478567,-574.19,0.00037534,2]
[314008613,1707923478576,-500.0,0.00037534,2]
[314008614,1707923478586,-500.0,0.00037534,2]
[314008615,1707923478595,-500.0,0.00037534,2]
[314008616,1707923478604,-500.0,0.00037534,2]
[314008617,1707923478613,-11522.74,0.00037534,2]
[314008618,1707923478622,-500.0,0.00037534,2]
[314008619,1707923478634,-1290.94,0.00037534,2]
[314008620,1707923478644,-520.12,0.00037534,2]
[314008621,1707923478653,-1511.05,0.00037534,2]
[314008622,1707923478662,-500.0,0.00037534,2]
[314008623,1707923478671,-879.95,0.00037534,2]
[314008624,1707923478681,-6267.83,0.00037534,2]
[314008625,1707923478690,-500.0,0.00037534,2]
[314008626,1707923478699,-763.78,0.00037534,2]
[314008627,1707923478708,-2830.38,0.00037534,2]
[314008628,1707923478717,-626.07,0.00037534,2]
[314008629,1707923478726,-1371.91,0.00037534,2]
[314008630,1707923478736,-500.0,0.00037534,2]
[314008631,1707923478745,-500.0,0.00037534,2]
[314008632,1707923478754,-4425.6,0.00037534,2]
[314008633,1707923478763,-500.0,0.00037534,2]
[314008634,1707923478772,-986.33,0.00037534,2]